fUST/lending_fUST_20240911
["ID","MTS","AMOUNT","RATE_DAILY","PERIOD"]
[337715258,1725987038282,-500.0,0.00016985,2]
[337715259,1725987038291,-500.0,0.00016985,2]
[337715260,1725987038300,-500.0,0.00016985,2]
[337715261,1725987038310,-500.0,0.00016985,2]
[337715262,1725987038319,-500.0,0.00016985,2]
[337715263,1725987038329,-1983.67,0.00016985,2]
[337715264,1725987038338,-500.0,0.00016985,2]
[337715265,1725987038347,-500.0,0.00016985,2]
[337715266,1725987038356,-585.68,0.00016985,2]
[337715267,1725987038366,-2056.03,0.00016985,2]
[337715268,1725987038377,-500.0,0.00016985,2]
[337715269,1725987038387,-817.93,0.00016985,2]
[337715270,1725987038398,-500.0,0.00016985,2]
[337715271,1725987038407,-1041.82,0.00016985,2]
[337715272,1725987038417,-500.0,0.00016985,2]
[337715273,1725987038428,-200.0,0.00016985,2]
[337715274,1725987038438,-500.0,0.00016985,2]
[337715275,1725987038448,-500.0,0.00016985,2]
[337715276,1725987038458,-500.0,0.00016985,2]
[337715277,1725987038469,-500.0,0.00016985,2]
[337715278,1725987038478,-500.0,0.00016985,2]
[337715279,1725987038487,-890.94,0.00016985,2]
[337715280,1725987038497,-500.0,0.00016985,2]
[337715281,1725987038506,-500.0,0.00016985,2]
[337715282,1725987038515,-500.0,0.00016985,2]
[337715283,1725987038525,-500.0,0.00016985,2]
[337715284,1725987038534,-500.0,0.00016985,2]
[337715285,1725987038545,-528.47076843,0.00016985,2]
[337715286,1725987038555,-500.0,0.00016985,2]
[337715287,1725987038565,-500.0,0.00016985,2]
[337715288,1725987038575,-500.0,0.00016985,2]
[337715289,1725987038584,-2908.31,0.00016985,2]
[337715290,1725987038593,-570.37,0.00016985,2]
[337715291,1725987038603,-500.0,0.00016985,2]
[337715292,1725987038612,-500.0,0.00016985,2]
[337715293,1725987038621,-43984.4,0.00016985,2]
[337715294,1725987038630,-197.50533589,0.00016985,2]
[337715295,1725987038640,-500.0,0.00016985,2]
[337715296,1725987038649,-500.0,0.00016985,2]
[337715297,1725987038659,-516.54165611,0.00016985,2]
[337715298,1725987038668,-2135.99,0.00016985,2]
[337715299,1725987038677,-500.0,0.00016985,2]
[337715300,1725987038687,-500.0,0.00016985,2]
[337715301,1725987038696,-500.0,0.00016985,2]
[337715302,1725987038705,-3517.34,0.00016985,2]
[337715303,1725987038715,-539.11,0.00016985,2]
[337715304,1725987038724,-2575.2,0.00016985,2]
[337715305,1725987038734,-500.0,0.00016985,2]
[337715306,1725987038743,-7865.92,0.00016985,2]
[337715307,1725987038754,-502.41234888,0.00016985,2]
[337715308,1725987038764,-501.68516995,0.00016985,2]
[337715309,1725987038773,-500.0,0.00016985,2]
[337715310,1725987038782,-504.93512011,0.00016985,2]
[337715311,1725987038791,-500.0,0.00016985,2]
[337715312,1725987038800,-500.0,0.00016985,2]
[337715313,1725987038811,-500.0,0.00016985,2]
[337715314,1725987038820,-500.0,0.00016985,2]
[337715315,1725987038830,-3508.18,0.00016985,2]
[337715316,1725987038839,-1299.19,0.00016985,2]
[337715317,1725987038849,-1213.25,0.00016985,2]
[337715318,1725987038858,-500.0,0.00016985,2]
[337715319,1725987038870,-500.0,0.00016985,2]
[337715320,1725987038881,-500.0,0.00016985,2]
[337715321,1725987038890,-500.0,0.00016985,2]
[337715322,1725987038900,-500.0,0.00016985,2]
[337715323,1725987038911,-897.95,0.00016985,2]
[337715324,1725987038923,-500.0,0.00016985,2]
[337715325,1725987038935,-2680.58,0.00016985,2]
[337715326,1725987038944,-867.86,0.00016985,2]
[337715327,1725987038958,-500.0,0.00016985,2]
[337715328,1725987038969,-500.0,0.00016985,2]
[337715329,1725987038980,-500.0,0.00016985,2]
[337715330,1725987038991,-539.4,0.00016985,2]
[337715331,1725987039001,-3969.43,0.00016985,2]
[337715332,1725987039013,-1187.95,0.00016985,2]
[337715333,1725987039023,-500.0,0.00016985,2]
[337715334,1725987039033,-500.0,0.00016985,2]
[337715335,1725987039044,-500.0,0.00016985,2]
[337715336,1725987039055,-500.0,0.00016985,2]
[337715337,1725987039065,-500.0,0.00016985,2]
[337715338,1725987039074,-500.0,0.00016985,2]
[337715339,1725987039083,-500.0,0.00016985,2]
[337715340,1725987039092,-500.0,0.00016985,2]
[337715341,1725987039102,-577.32123806,0.00016985,2]
[337715342,1725987039111,-500.0,0.00016985,2]
[337715343,1725987039121,-500.0,0.00016985,2]
[337715344,1725987039130,-500.0,0.00016985,2]
[337715345,1725987039139,-8904.62,0.00016985,2]
[337715346,1725987039149,-1301.09,0.00016985,2]
[337715347,1725987039158,-500.0,0.00016985,2]
[337715348,1725987039167,-386.61339865,0.00016985,2]
[337715349,1725987039176,-500.0,0.00016985,2]
[337715350,1725987039185,-500.0,0.00016985,2]
[337715351,1725987039195,-500.0,0.00016985,2]
[337715352,1725987039204,-1116.76,0.00016985,2]
[337715354,1725987039213,-500.0,0.00016985,2]
[337715356,1725987039223,-2535.01,0.00016985,2]
[337715358,1725987039233,-500.0,0.00016985,2]
[337715360,1725987039242,-1737.23,0.00016985,2]
[337715362,1725987039252,-565.82764609,0.00016985,2]
[337715364,1725987039261,-500.0,0.00016985,2]
[337715366,1725987039271,-1452.81,0.00016985,2]
[337715368,1725987039280,-500.0,0.00016985,2]
[337715370,1725987039290,-500.0,0.00016985,2]
[337715372,1725987039299,-500.0,0.00016985,2]
[337715374,1725987039318,-500.0,0.00016985,2]
[337715376,1725987039328,-500.0,0.00016985,2]
[337715378,1725987039337,-500.0,0.00016985,2]
[337715380,1725987039348,-500.0,0.00016985,2]
[337715382,1725987039357,-500.0,0.00016985,2]
[337715384,1725987039367,-500.0,0.00016985,2]
[337715386,1725987039376,-3779.0,0.00016985,2]
[337715388,1725987039385,-500.0,0.00016985,2]
[337715390,1725987039395,-500.0,0.00016985,2]
[337715392,1725987039405,-500.0,0.00016985,2]
[337715394,1725987039415,-499.80009277,0.00016985,2]
[337715396,1725987039425,-187.2323432,0.00016985,2]
[337715398,1725987039435,-262.59052775,0.00016985,2]
[337715401,1725987039445,-500.0,0.00016985,2]
[337715403,1725987039455,-500.0,0.00016985,2]
[337715405,1725987039465,-500.0,0.00016985,2]
[337715406,1725987039474,-500.0,0.00016985,2]
[337715408,1725987039484,-500.0,0.00016985,2]
[337715410,1725987039493,-500.0,0.00016985,2]
[337715411,1725987039503,-500.0,0.00016985,2]
[337715412,1725987039512,-500.0,0.00016985,2]
[337715413,1725987039522,-500.0,0.00016985,2]
[337715414,1725987039531,-500.0,0.00016985,2]
[337715415,1725987039541,-500.0,0.00016985,2]
[337715416,1725987039550,-7515.65914464,0.00016986,3]
[337715417,1725987039560,-287.96915818,0.00016986,2]
[337715418,1725987039569,-500.0,0.00016986,2]
[337715419,1725987039578,-500.0,0.00016986,2]
[337715420,1725987039587,-500.0,0.00016986,2]
[337715421,1725987039596,-565.66,0.00016986,2]
[337715422,1725987039605,-920.25,0.00016986,2]
[337715423,1725987039615,-500.0,0.00016986,2]
[337715425,1725987039624,-500.0,0.00016986,2]
[337715427,1725987039634,-500.0,0.00016986,2]
[337715428,1725987039643,-500.0,0.00016986,2]
[337715429,1725987039652,-500.0,0.00016986,2]
[337715430,1725987039662,-500.0,0.00016986,2]
[337715431,1725987039671,-1099.81,0.00016986,2]
[337715432,1725987039680,-500.0,0.00016986,2]
[337715433,1725987039690,-500.0,0.00016986,2]
[337715434,1725987039699,-500.0,0.00016986,2]
[337715435,1725987039709,-500.0,0.00016986,2]
[337715436,1725987039720,-1604.71,0.00016986,2]
[337715437,1725987039730,-2210.6,0.00016986,2]
[337715439,1725987039740,-500.0,0.00016986,2]
[337715441,1725987039749,-500.0,0.00016986,2]
[337715443,1725987039761,-1189.48,0.00016986,2]
[337715444,1725987039770,-500.0,0.00016986,2]
[337715445,1725987039779,-500.0,0.00016986,2]
[337715446,1725987039788,-663.24,0.00016986,2]
[337715447,1725987039797,-1038.53,0.00016986,2]
[337715448,1725987039810,-1169.08,0.00016986,2]
[337715449,1725987039819,-505.5,0.00016986,2]
[337715450,1725987039828,-1822.14,0.00016986,2]
[337715451,1725987039837,-720.07,0.00016986,2]
[337715452,1725987039846,-891.93,0.00016986,2]
[337715453,1725987039855,-500.0,0.00016986,2]
[337715454,1725987039864,-2913.8,0.00016986,2]
[337715455,1725987039877,-500.0,0.00016986,2]
[337715456,1725987039887,-1955.94,0.00016986,2]
[337715457,1725987039899,-500.0,0.00016986,2]
[337715458,1725987039910,-742.92,0.00016986,2]
[337715459,1725987039921,-500.0,0.00016986,2]
[337715460,1725987039932,-567.74,0.00016986,2]
[337715461,1725987039943,-609.62,0.00016986,2]
[337715462,1725987039954,-500.0,0.00016986,2]
[337715463,1725987039966,-1713.89,0.00016986,2]
[337715464,1725987039976,-1014.76,0.00016986,2]
[337715465,1725987039986,-500.0,0.00016986,2]
[337715466,1725987039995,-500.0,0.00016986,2]
[337715467,1725987040005,-971.86,0.00016986,2]
[337715468,1725987040015,-500.0,0.00016986,2]
[337715469,1725987040024,-2284.58,0.00016986,2]
[337715470,1725987040033,-500.0,0.00016986,2]
[337715471,1725987040043,-1021.87,0.00016986,2]
[337715472,1725987040052,-500.0,0.00016986,2]
[337715473,1725987040062,-792.09,0.00016986,2]
[337715474,1725987040071,-1816.79,0.00016986,2]
[337715475,1725987040081,-500.0,0.00016986,2]
[337715476,1725987040090,-720.94,0.00016986,2]
[337715477,1725987040099,-500.0,0.00016986,2]
[337715478,1725987040110,-753.23,0.00016986,2]
[337715479,1725987040119,-511.3250602,0.00016986,2]
[337715480,1725987040128,-1933.6,0.00016986,2]
[337715481,1725987040138,-1008.22,0.00016986,2]
[337715482,1725987040149,-1583.17,0.00016986,2]
[337715483,1725987040159,-500.0,0.00016986,2]
[337715484,1725987040169,-500.0,0.00016986,2]
[337715485,1725987040179,-500.0,0.00016986,2]
[337715486,1725987040188,-500.0,0.00016986,2]
[337715487,1725987040197,-500.0,0.00016986,2]
[337715488,1725987040207,-9481.22,0.00016986,2]
[337715489,1725987040216,-1938.09,0.00016986,2]
[337715490,1725987040225,-1806.64,0.00016986,2]
[337715491,1725987040235,-589.44,0.00016986,2]
[337715492,1725987040244,-500.0,0.00016986,2]
[337715493,1725987040253,-500.0,0.00016986,2]
[337715494,1725987040263,-1240.8,0.00016986,2]
[337715495,1725987040272,-946.63,0.00016986,2]
[337715496,1725987040281,-38864.62,0.00016986,2]
[337715497,1725987040290,-500.0,0.00016986,2]
[337715498,1725987040300,-500.0,0.00016986,2]
[337715499,1725987040311,-2013.95,0.00016986,2]
[337715500,1725987040320,-2044.37,0.00016986,2]
[337715501,1725987040330,-500.0,0.00016986,2]
[337715502,1725987040339,-53987.64,0.00016986,2]
[337715503,1725987040350,-500.0,0.00016986,2]
[337715504,1725987040360,-500.0,0.00016986,2]
[337715505,1725987040370,-500.0,0.00016986,2]
[337715506,1725987040380,-500.0,0.00016986,2]
[337715507,1725987040389,-421.39106432,0.00016986,2]
[337715508,1725987040398,-500.0,0.00016986,2]
[337715509,1725987040408,-4713.36,0.00016986,2]
[337715510,1725987040417,-535.49,0.00016986,2]
[337715511,1725987040426,-500.0,0.00016986,2]
[337715512,1725987040436,-965.38,0.00016986,2]
[337715513,1725987040445,-500.0,0.00016986,2]
[337715514,1725987040455,-500.0,0.00016986,2]
[337715515,1725987040464,-806.04,0.00016986,2]
[337715516,1725987040474,-500.0,0.00016986,2]
[337715517,1725987040484,-500.0,0.00016986,2]
[337715518,1725987040493,-500.0,0.00016986,2]
[337715519,1725987040502,-500.0,0.00016986,2]
[337715520,1725987040512,-500.0,0.00016986,2]
[337715521,1725987040521,-2582.53,0.00016986,2]
[337715522,1725987040531,-677.86,0.00016986,2]
[337715523,1725987040540,-500.0,0.00016986,2]
[337715524,1725987040550,-500.0,0.00016986,2]
[337715525,1725987040561,-771.86,0.00016986,2]
[337715526,1725987040570,-500.0,0.00016986,2]
[337715527,1725987040579,-518.67794397,0.00016986,2]
[337715528,1725987040588,-500.0,0.00016986,2]
[337715529,1725987040598,-1718.58,0.00016986,2]
[337715530,1725987040764,-1132.77,0.00016986,2]
[337715531,1725987040775,-500.0,0.00016986,2]
[337715532,1725987040786,-471.95804147,0.00016986,2]
[337715533,1725987040795,-2709.96,0.00016986,2]
[337715534,1725987040806,-652.93,0.00016986,2]
[337715535,1725987040815,-500.0,0.00016986,2]
[337715536,1725987040826,-5158.88,0.00016986,2]
[337715537,1725987040837,-276.05016434,0.00016986,2]
[337715538,1725987040847,-241.92496969,0.00016986,2]
[337715539,1725987040858,-500.0,0.00016986,2]
[337715540,1725987040868,-500.0,0.00016986,2]
[337715541,1725987040880,-500.0,0.00016986,2]
[337715542,1725987040890,-500.0,0.00016986,2]
[337715543,1725987040900,-500.0,0.00016986,2]
[337715544,1725987040910,-500.0,0.00016986,2]
[337715545,1725987040919,-174.0,0.00016986,2]
[337715546,1725987040929,-500.0,0.00016986,2]
[337715547,1725987040939,-500.0,0.00016986,2]
[337715548,1725987040951,-1065.08,0.00016987,2]
[337715549,1725987040961,-500.0,0.00016987,2]
[337715550,1725987040970,-500.0,0.00016987,2]
[337715551,1725987040979,-660.04,0.00016987,2]
[337715552,1725987040988,-500.0,0.00016987,2]
[337715553,1725987040997,-500.0,0.00016987,2]
[337715554,1725987041006,-580.25,0.00016987,2]
[337715555,1725987041015,-500.0,0.00016987,2]
[337715556,1725987041024,-500.0,0.00016987,2]
[337715557,1725987041034,-500.0,0.00016987,2]
[337715558,1725987041043,-500.0,0.00016987,2]
[337715559,1725987041053,-1568.6,0.00016987,2]
[337715560,1725987041062,-792.17,0.00016987,2]
[337715561,1725987041071,-500.0,0.00016987,2]
[337715562,1725987041080,-500.0,0.00016987,2]
[337715563,1725987041089,-904.46,0.00016987,2]
[337715564,1725987041098,-448.36233362,0.00016987,2]
[337715565,1725987041107,-500.0,0.00016987,2]
[337715566,1725987041116,-492.05993453,0.00016987,2]
[337715567,1725987041126,-545.70206234,0.00016987,2]
[337715568,1725987041135,-625.22,0.00016987,2]
[337715569,1725987041145,-500.0,0.00016987,2]
[337715570,1725987041156,-536.45,0.00016987,2]
[337715571,1725987041165,-500.0,0.00016987,2]
[337715572,1725987041175,-500.0,0.00016987,2]
[337715573,1725987041184,-500.0,0.00016987,2]
[337715574,1725987041193,-502.6,0.00016987,2]
[337715575,1725987041203,-500.0,0.00016987,2]
[337715576,1725987041212,-1049.86,0.00016987,2]
[337715577,1725987041221,-1076.1,0.00016987,2]
[337715578,1725987041231,-500.0,0.00016987,2]
[337715579,1725987041240,-500.0,0.00016987,2]
[337715580,1725987041249,-500.0,0.00016987,2]
[337715581,1725987041259,-296.55500104,0.00016987,2]
[337715582,1725987041268,-500.0,0.00016987,2]
[337715583,1725987041277,-500.0,0.00016987,2]
[337715584,1725987041286,-500.0,0.00016987,2]
[337715585,1725987041296,-500.0,0.00016987,2]
[337715586,1725987041305,-500.0,0.00016987,2]
[337715587,1725987041315,-823.73,0.00016987,2]
[337715588,1725987041324,-500.0,0.00016987,2]
[337715589,1725987041334,-500.0,0.00016987,2]
[337715590,1725987041343,-500.0,0.00016987,2]
[337715591,1725987041353,-500.0,0.00016987,2]
[337715592,1725987041363,-500.0,0.00016987,2]
[337715593,1725987041372,-500.0,0.00016987,2]
[337715594,1725987041381,-500.0,0.00016987,2]
[337715595,1725987041391,-629.08,0.00016987,2]
[337715596,1725987041400,-500.0,0.00016987,2]
[337715597,1725987041409,-712.42,0.00016987,2]
[337715598,1725987041419,-500.0,0.00016987,2]
[337715599,1725987041428,-500.0,0.00016987,2]
[337715600,1725987041439,-500.0,0.00016987,2]
[337715601,1725987041448,-500.0,0.00016987,2]
[337715602,1725987041458,-500.0,0.00016987,2]
[337715603,1725987041468,-500.0,0.00016987,2]
[337715604,1725987041478,-500.0,0.00016987,2]
[337715605,1725987041488,-500.0,0.00016987,2]
[337715606,1725987041497,-500.0,0.00016987,2]
[337715607,1725987041507,-500.0,0.00016987,2]
[337715608,1725987041516,-493.75114129,0.00016987,2]
[337715609,1725987041526,-500.0,0.00016987,2]
[337715610,1725987041536,-500.0,0.00016987,2]
[337715611,1725987041545,-500.0,0.00016987,2]
[337715612,1725987041555,-852.74,0.00016987,2]
[337715613,1725987041564,-500.0,0.00016987,2]
[337715614,1725987041574,-500.0,0.00016987,2]
[337715615,1725987041584,-500.0,0.00016987,2]
[337715616,1725987041594,-500.0,0.00016987,2]
[337715617,1725987041603,-535.02670543,0.00016987,2]
[337715618,1725987041613,-500.0,0.00016987,2]
[337715619,1725987041622,-500.0,0.00016987,2]
[337715620,1725987041632,-800.96,0.00016987,2]
[337715621,1725987041642,-649.67,0.00016987,2]
[337715622,1725987041651,-500.0,0.00016987,2]
[337715623,1725987041660,-500.0,0.00016987,2]
[337715624,1725987041669,-500.0,0.00016987,2]
[337715625,1725987041679,-588.79,0.00016987,2]
[337715626,1725987041688,-500.0,0.00016987,2]
[337715627,1725987041697,-1531.75,0.00016987,2]
[337715628,1725987041707,-500.0,0.00016987,2]
[337715629,1725987041717,-677.0,0.00016987,2]
[337715630,1725987041727,-500.0,0.00016987,2]
[337715631,1725987041737,-582.35,0.00016987,2]
[337715632,1725987041747,-1661.25,0.00016987,2]
[337715633,1725987041756,-500.0,0.00016987,2]
[337715634,1725987041766,-500.0,0.00016987,2]
[337715635,1725987041775,-500.0,0.00016987,2]
[337715636,1725987041785,-902.12,0.00016987,2]
[337715637,1725987041794,-500.0,0.00016987,2]
[337715638,1725987041804,-500.0,0.00016987,2]
[337715639,1725987041813,-219.37392126,0.00016987,2]
[337715640,1725987041823,-500.0,0.00016987,2]
[337715641,1725987041832,-1161.67,0.00016987,2]
[337715642,1725987041842,-552.93883444,0.00016987,2]
[337715643,1725987041851,-1545.8,0.00016987,2]
[337715644,1725987041860,-500.0,0.00016987,2]
[337715645,1725987041874,-500.0,0.00016987,2]
[337715646,1725987041883,-1031.96,0.00016987,2]
[337715647,1725987041894,-500.0,0.00016987,2]
[337715648,1725987041905,-1005.54,0.00016987,2]
[337715649,1725987041914,-801.25,0.00016987,2]
[337715650,1725987041927,-682.45,0.00016987,2]
[337715651,1725987041937,-546.7709716,0.00016987,2]
[337715652,1725987041950,-1528.95,0.00016987,2]
[337715653,1725987041961,-686.42,0.00016987,2]
[337715654,1725987041970,-500.0,0.00016987,2]
[337715655,1725987041980,-500.0,0.00016987,2]
[337715656,1725987041990,-3196.6,0.00016987,2]
[337715657,1725987042000,-1720.38,0.00016987,2]
[337715658,1725987042010,-580.2,0.00016987,2]
[337715659,1725987042020,-500.0,0.00016987,2]
[337715660,1725987042030,-2053.93,0.00016987,2]
[337715661,1725987042039,-500.0,0.00016987,2]
[337715662,1725987042049,-1653.22,0.00016987,2]
[337715663,1725987042059,-262.84408514,0.00016987,2]
[337715675,1725987042609,-500.0,0.00016984,2]
[337715676,1725987042618,-500.0,0.00016985,2]
[337715677,1725987042628,-237.15591486,0.00016987,2]
[337715678,1725987042638,-2581.4,0.00016987,2]
[337715679,1725987042648,-533.85924473,0.00016987,2]
[337715680,1725987042658,-500.0,0.00016987,2]
[337715681,1725987042667,-500.0,0.00016987,2]
[337715682,1725987042677,-420.70130005,0.00016987,2]
[337715683,1725987042686,-500.0,0.00016987,2]
[337715684,1725987042695,-500.0,0.00016987,2]
[337715685,1725987042704,-500.0,0.00016987,2]
[337715686,1725987042714,-582.87,0.00016987,2]
[337715687,1725987042723,-500.0,0.00016987,2]
[337715688,1725987042733,-665.52,0.00016987,2]
[337715689,1725987042743,-500.0,0.00016987,2]
[337715690,1725987042753,-500.0,0.00016987,2]
[337715691,1725987042762,-624.21,0.00016987,2]
[337715692,1725987042771,-796.18,0.00016987,2]
[337715693,1725987042782,-372.85634277,0.00016987,2]
[337715694,1725987042794,-127.14365723,0.00016987,2]
[337715695,1725987042804,-500.0,0.00016987,2]
[337715696,1725987042817,-1104.05415729,0.00016987,2]
[337715697,1725987042829,-498.50584271,0.00016987,2]
[337715698,1725987042838,-497.19781492,0.00016987,2]
[337715710,1725987043441,-9.14194362,0.00016985,2]
[337715739,1725987050368,-490.85805638,0.00016985,2]
[337715740,1725987050377,-500.0,0.00016985,2]
[337715741,1725987050387,-500.0,0.00016985,2]
[337715742,1725987050396,-500.0,0.00016986,2]
[337715743,1725987050406,-500.0,0.00016986,2]
[337715744,1725987050416,-972.48,0.00016986,2]
[337715745,1725987050425,-500.0,0.00016986,2]
[337715746,1725987050437,-656.19218508,0.00016987,2]
[337715747,1725987050449,-979.44,0.00016987,2]
[337715748,1725987050459,-629.96,0.00016987,2]
[337715749,1725987050468,-931.29,0.00016987,2]
[337715750,1725987050478,-500.0,0.00016987,2]
[337715751,1725987050487,-500.0,0.00016987,2]
[337715752,1725987050497,-516.8,0.00016987,2]
[337715753,1725987050507,-1387.23,0.00016987,2]
[337715754,1725987050517,-1249.15,0.00016987,2]
[337715755,1725987050526,-500.0,0.00016987,2]
[337715756,1725987050535,-500.0,0.00016987,2]
[337715757,1725987050544,-507.63,0.00016987,2]
[337715758,1725987050554,-3108.36,0.00016987,2]
[337715759,1725987050565,-1950.86,0.00016987,2]
[337715760,1725987050574,-500.0,0.00016987,2]
[337715761,1725987050583,-513.58,0.00016987,2]
[337715762,1725987050592,-500.0,0.00016987,2]
[337715763,1725987050601,-500.0,0.00016987,2]
[337715764,1725987050611,-1468.78,0.00016987,2]
[337715765,1725987050620,-4251.41,0.00016987,2]
[337715766,1725987050630,-500.0,0.00016987,2]
[337715767,1725987050640,-500.0,0.00016987,2]
[337715768,1725987050649,-500.0,0.00016987,2]
[337715769,1725987050659,-500.0,0.00016987,2]
[337715770,1725987050668,-500.0,0.00016987,2]
[337715771,1725987050678,-558.70872815,0.00016987,2]
[337715772,1725987050687,-500.0,0.00016987,2]
[337715773,1725987050697,-500.0,0.00016987,2]
[337715774,1725987050706,-500.0,0.00016987,2]
[337715775,1725987050715,-557.05717503,0.00016987,2]
[337715776,1725987050725,-500.0,0.00016987,2]
[337715777,1725987050735,-818.77,0.00016987,2]
[337715778,1725987050745,-500.0,0.00016987,2]
[337715779,1725987050754,-500.0,0.00016987,2]
[337715780,1725987050763,-500.0,0.00016987,2]
[337715781,1725987050773,-500.0,0.00016987,2]
[337715782,1725987050782,-500.0,0.00016987,2]
[337715783,1725987050792,-547.21,0.00016987,2]
[337715784,1725987050802,-889.36,0.00016987,2]
[337715785,1725987050811,-500.0,0.00016987,2]
[337715786,1725987050820,-500.0,0.00016987,2]
[337715787,1725987050829,-500.0,0.00016987,2]
[337715788,1725987050838,-948.67,0.00016987,2]
[337715789,1725987050848,-653.85,0.00016987,2]
[337715790,1725987050857,-500.0,0.00016987,2]
[337715791,1725987050866,-500.0,0.00016987,2]
[337715792,1725987050881,-527.0,0.00016987,2]
[337715793,1725987050891,-500.0,0.00016987,2]
[337715794,1725987050901,-1596.56,0.00016987,2]
[337715795,1725987050911,-626.02,0.00016987,2]
[337715796,1725987050922,-500.0,0.00016987,2]
[337715797,1725987050932,-500.0,0.00016987,2]
[337715798,1725987050942,-500.0,0.00016987,2]
[337715799,1725987050954,-500.0,0.00016987,2]
[337715800,1725987050964,-553.2,0.00016987,2]
[337715801,1725987050974,-500.0,0.00016987,2]
[337715802,1725987050983,-848.19,0.00016987,2]
[337715803,1725987050993,-500.0,0.00016987,2]
[337715804,1725987051001,-500.0,0.00016987,2]
[337715805,1725987051012,-882.16,0.00016987,2]
[337715806,1725987051023,-500.0,0.00016987,2]
[337715807,1725987051033,-578.17,0.00016987,2]
[337715808,1725987051044,-500.0,0.00016987,2]
[337715809,1725987051055,-500.0,0.00016987,2]
[337715810,1725987051064,-500.0,0.00016987,2]
[337715811,1725987051074,-500.0,0.00016987,2]
[337715812,1725987051084,-841.44,0.00016987,2]
[337715813,1725987051094,-500.0,0.00016987,2]
[337715814,1725987051104,-791.11,0.00016987,2]
[337715815,1725987051113,-191.45925644,0.00016987,2]
[337715816,1725987051123,-642.34,0.00016987,2]
[337715817,1725987051132,-492.14518139,0.00016987,2]
[337715818,1725987051142,-500.0,0.00016987,2]
[337715819,1725987051151,-500.0,0.00016987,2]
[337715820,1725987051161,-500.0,0.00016987,2]
[337715821,1725987051171,-500.0,0.00016987,2]
[337715822,1725987051181,-1895.41,0.00016987,2]
[337715823,1725987051191,-500.0,0.00016987,2]
[337715824,1725987051202,-500.0,0.00016987,2]
[337715825,1725987051211,-980.57,0.00016987,2]
[337715826,1725987051221,-512.40869208,0.00016987,2]
[337715827,1725987051230,-500.0,0.00016987,2]
[337715828,1725987051239,-2400.44,0.00016987,2]
[337715829,1725987051249,-500.0,0.00016987,2]
[337715830,1725987051258,-500.0,0.00016987,2]
[337715831,1725987051267,-500.0,0.00016987,2]
[337715832,1725987051277,-500.0,0.00016987,2]
[337715833,1725987051286,-500.0,0.00016987,2]
[337715834,1725987051296,-1124.28,0.00016987,2]
[337715835,1725987051305,-500.0,0.00016987,2]
[337715836,1725987051315,-500.0,0.00016987,2]
[337715837,1725987051326,-672.56,0.00016987,2]
[337715838,1725987051336,-571.17,0.00016987,2]
[337715839,1725987051348,-500.0,0.00016987,2]
[337715840,1725987051358,-500.0,0.00016987,2]
[337715841,1725987051368,-500.0,0.00016987,2]